Cogmind - Beta 15 X1 @@@ ROGUE MODE // 2024.11.17 @ 17:51:06 Player: H3-RMN Result: Destroyed by XO-GLR(R) with Subdweller Machine Gun Performance ------------- Evolutions (0) 0 Regions Visited (3) 600 Robots Destroyed (45) 225 Value Destroyed (1006) 1006 Prototype IDs (5) 100 Alien Tech Used (0) 0 Bonus (0) 0 TOTAL SCORE: 1931 Bonus ------- None Cogmind --------- Core Integrity 0/250 Matter 266/300 Energy 246/265 System Corruption 2% Temperature Cool (0) Movement Treading (880) Ox9 Location -10/Subcaves Parts ------- > --- POWER (1) -------- Improved Ion Engine > --- PROPULSION (2) --- Improved Treads Subdweller Monowheel > --- UTILITY (2) ------ Humpback > --- WEAPON (2) ------- Subdweller Laser Autogun > --- INVENTORY (35) --- Subdweller Power Source Improved Treads Improved Treads Medium Storage Unit Medium Battery (150) Medium Matter Pod (0) Subdweller Optics Hacking Suite Sensor Drone Bay (19/20) Subdweller Laser Subdweller Laser Battle Cannon Rocket Launcher Datajack Multitool Shrapnel Trap Shrapnel Trap Scrap Shield Fragment (46) Peak State ------------ > --- POWER ------------ Improved Ion Engine Subdweller Power Source > --- PROPULSION ------- Improved Treads Improved Treads Improved Treads > --- UTILITY ---------- Medium Storage Unit Targeting Computer Rainbow Chip > --- WEAPON ----------- Subdweller Laser Autogun Battle Cannon > --- INVENTORY -------- Subdweller Power Source Improved Treads Medium Battery Hacking Suite Sensor Drone Bay Subdweller Laser Subdweller Laser Rocket Launcher Multitool [Rating: 33] Favorites ----------- Power Ion Engine Engine Ion Engine Power Core Light Nuclear Core Propulsion Improved Treads Treads Improved Treads Wheel Wheel Utility Medium Storage Unit Device Sensor Drone Bay Storage Medium Storage Unit Processor Rainbow Chip Protection Light Armor Plating Weapon Improved EM Shotgun Energy Gun Improved EM Shotgun Ballistic Gun Autogun Ballistic Cannon Battle Cannon Build | -11 -10 -10 -10 ------- Run | Yrd Mat Min Sub Slots Evolved . | . . . . Power . | . . . . Propulsion . | . . . . Utility . | . . . . Weapon . | . . . . Parts Attached 40 | 10 13 5 12 Power 7 | 2 1 2 2 Engine 5 | 2 1 . 2 Core 2 | . . 2 . Reactor . | . . . . Propulsion 8 | 3 2 . 3 Treads 5 | 1 2 . 2 Leg . | . . . . Wheel 3 | 2 . . 1 Hover . | . . . . Flight . | . . . . Utility 12 | 2 5 2 3 Device 3 | 1 1 1 . Storage 4 | 1 2 . 1 Processor 3 | . 1 . 2 Hackware . | . . . . Protection 2 | . 1 1 . Artifact . | . . . . Weapon 13 | 3 5 1 4 Energy Gun 10 | 2 5 1 2 Energy Cannon . | . . . . Ballistic Gun 2 | 1 . . 1 Ballistic Cannon 1 | . . . 1 Launcher . | . . . . Special Weapon . | . . . . Impact Weapon . | . . . . Slashing Weapon . | . . . . Piercing Weapon . | . . . . Special Melee Weapon . | . . . . Unidentified Prototypes 3 | . 1 1 1 Corrupted Parts 1 | 1 . . . System Corruption 2 | 2 . . . Parts Lost 10 | . 4 1 5 Power 3 | . 1 1 1 Propulsion 1 | . . . 1 Utility 1 | . 1 . . Weapon 5 | . 2 . 3 Highest Loss Streak 4 | . 4 1 2 To Critical Strikes . | . . . . Average Backups 9 | 3 8 10 10 Power . | . . 1 . Propulsion 2 | 1 2 2 1 Utility 2 | . 1 3 3 Weapon 2 | 1 2 3 3 Tool/Special . | . . . . Unused Backups 22 | . 8 3 11 Power 3 | . . 2 1 Propulsion 4 | . 3 1 . Utility 6 | . 2 . 4 Weapon 7 | . 3 . 4 Tool/Special 2 | . . . 2 Average Slot Usage (%) 98 | . 98 100 95 Engine 9 | . 14 . 13 Core 4 | . . 13 1 Treads 24 | . 22 28 25 Wheel 2 | . 5 . 1 Device 1 | . . 3 . Storage 18 | . 22 18 10 Processor 3 | . . . 13 Protection 3 | . 3 5 1 Energy Gun 22 | . 26 28 11 Ballistic Gun 3 | . 1 . 9 Ballistic Cannon 1 | . . . 5 Peak Build Rating 33 | 8 16 23 33 Average Rating 17 | 5 11 18 26 On Entrance 10 | . 8 15 17 Naked Turns . | . . . . Heaviest Build 214 | 14 23 35 214 Greatest Support 69 | 26 46 46 69 Greatest Overweight (x) 10 | . 1 . 10 Average Overweight (x) . | . . . 1 Largest Inventory Capacity 35 | 8 10 10 35 Average Capacity 10 | 7 8 10 14 Most Carried 18 | 8 10 10 18 Average Carried 9 | 3 8 9 10 Final Capacity 35 | 8 10 10 35 Final Carried 18 | 8 10 10 18 Class Distribution -------------------- 76% | Mutant 17% | Gunner 5% | Hauler-Mutant Dominant Class ---------------- Mutant | -10/Materials Mutant | -10/Mines Gunner | -10/Subcaves Resources | -11 -10 -10 -10 ----------- Run | Yrd Mat Min Sub Matter Collected 965 | 317 201 106 341 Remotely . | . . . . Salvage Created 1671 | 151 828 264 428 Parts 99 | 13 54 10 22 Haulers Intercepted 2 | . 2 . . Recyclers Shooed . | . . . . Parts Field Recycled . | . . . . Retrieved Matter . | . . . . Parts Self-Destructed . | . . . . Prevented . | . . . . Kills | -11 -10 -10 -10 ------- Run | Yrd Mat Min Sub Combat Hostiles Destroyed 29 | . 15 4 10 Guns 24 | . 12 4 8 Cannons 2 | . . . 2 AOE 3 | . 3 . . Classes Destroyed 12 | 3 6 2 1 Worker 5 | 1 4 . . Builder 2 | . 1 1 . Tunneler 3 | 3 . . . Hauler 2 | . 2 . . Recycler 2 | 1 . 1 . Operator 1 | . 1 . . Drone 1 | . . 1 . Watcher 3 | . 3 . . Swarmer 6 | . 6 . . Grunt 11 | . 9 2 . Subdweller 10 | . . . 10 Assembled 2 | . . 2 . Best Kill Streak 4 | 3 4 2 3 Combat Bots Only 4 | . 4 2 3 Max Kills in Single Turn 3 | 1 3 2 1 Gunslinging . | . . . . Exploded 2 | . 2 . . Melee . | . . . . Uniques/NPCs Destroyed . | . . . . Combat | -11 -10 -10 -10 -------- Run | Yrd Mat Min Sub Hostile Shots Fired 161 | . 86 9 66 Missed 46 | . 27 2 17 Damage Taken 1973 | . 774 137 1062 Core 262 | . 121 . 141 Absorbed by Shields . | . . . . Redirected to Shielding 50 | . 50 . . Regen/Repaired (Parts) 43 | . 43 . . Core Remaining (%) 100 | 100 . . . Volleys Fired 124 | 17 47 13 47 Largest 3 | 2 2 2 3 Hottest 116 | 60 90 90 116 Shots Fired 271 | 34 94 28 115 Gun 247 | 34 94 28 91 Cannon 24 | . . . 24 Launcher . | . . . . Special . | . . . . Kinetic 94 | 17 16 . 61 Thermal 23 | . . . 23 Explosive . | . . . . Electromagnetic 154 | 17 78 28 31 Robot Hit Streak 18 | 9 7 8 18 Robot Miss Streak 4 | 2 4 3 1 Penetration Max . | . . . . Secondary Targets 3 | . 2 . 1 Max Gunslinging Chain 1 | . 1 . 1 Shots Hit Robots 193 | 24 57 21 91 Core Hits 86 | 8 38 16 24 Critical Kills . | . . . . Critical Parts Destroyed . | . . . . Critical Strikes 1 | . 1 . . Corrupt 1 | . 1 . . Melee Attacks . | . . . . Impact . | . . . . Slashing . | . . . . Piercing . | . . . . Sneak Attacks . | . . . . Combat Hostiles . | . . . . Follow-up Attacks . | . . . . Damage Inflicted 3280 | 286 1106 405 1483 Guns 2641 | 265 881 375 1120 Cannons 363 | . . . 363 Explosions 269 | 21 225 23 . Melee . | . . . . Ramming 7 | . . 7 . Kinetic 982 | 101 80 . 801 Thermal 618 | 21 225 23 349 Explosive . | . . . . Electromagnetic 1673 | 164 801 375 333 Impact . | . . . . Slashing . | . . . . Piercing . | . . . . Highest Corruption 2 | 2 2 2 2 Average Corruption 2 | 2 2 2 2 Corruption Purged . | . . . . Corruption Blocked . | . . . . Effects 43 | 1 15 14 13 Message Errors 9 | . 3 1 5 Matter Fused 11 | . 3 7 1 Heat Flow Errors 3 | . 1 2 . Energy Discharges 4 | . 3 . 1 Data Loss (minor) 5 | 1 . 1 3 Data Loss (major) 1 | . . 1 . Misfires 8 | . 4 2 2 Alerts 2 | . 1 . 1 Overload Shots . | . . . . Overflow Damage . | . . . . Projectiles . | . . . . Explosions . | . . . . Melee . | . . . . Knockbacks 3 | . . . 3 Impact . | . . . . Kinetic 3 | . . . 3 Secondary . | . . . . Self-Inflicted Damage 51 | . 51 . . Shots 1 | . 1 . . Rammed 1 | . . 1 . Targets Rammed 1 | . . 1 . Kicked . | . . . . Crushed . | . . . . Highest Temperature 270 | 40 260 173 270 Average Temperature 69 | 20 81 62 76 Received Heat Transfer 816 | . 324 54 438 Effects 2 | . 2 . . Interference 2 | . 2 . . Siege Activations . | . . . . Martial Activations . | . . . . Shielding Activations . | . . . . Robots Disrupted . | . . . . Combat Hostiles . | . . . . Robots Corrupted . | . . . . Combat Hostiles . | . . . . Parts Fried 3 | 1 . 1 1 Impact Corruptions . | . . . . Robots Melted . | . . . . Combat Hostiles . | . . . . Parts Melted 1 | . . . 1 Heat Transferred 675 | . 200 50 425 Parts Sabotaged . | . . . . Parts Stolen . | . . . . Parts Stripped . | . . . . Power Chain Reactions 6 | 1 4 1 . Alert | -11 -10 -10 -10 ------- Run | Yrd Mat Min Sub Maximum Alert Level . | . . . . Low Security (%) 100 | 100 100 100 . Level 1 . | . . . . Level 2 . | . . . . Level 3 . | . . . . Level 4 . | . . . . Level 5 . | . . . . High Security . | . . . . Max Security . | . . . . Peak Influence 105 | 10 105 77 . Initial 37 | . . 37 . Average 23 | 1 40 6 . Influence Increases 603 | 25 516 62 . Destroy 0b10 Robot/C 340 | . 300 40 . Destroy 0b10 Robot/NC 90 | 25 55 10 . Destroy Leader 70 | . 60 10 . Successful Hack 31 | . 31 . . Disable Machine 45 | . 45 . . Destroy Structure 12 | . 10 2 . Lose Combat Pursuer 15 | . 15 . . Influence Decreases 543 | 25 419 99 . Time Decay 457 | 25 343 89 . Lost Part 15 | . 5 10 . Purge Threat 71 | . 71 . . Squads Dispatched 2 | . 2 . . Investigation 1 | . 1 . . Extermination . | . . . . Reinforcement 1 | . 1 . . Assault . | . . . . Garrison . | . . . . Intercept . | . . . . Searches Triggered . | . . . . Construction Impeded . | . . . . Haulers Reinforced . | . . . . Active Scanning Responses . | . . . . Cargo Convoy Interrupts . | . . . . Stealth | -11 -10 -10 -10 --------- Run | Yrd Mat Min Sub Distress Signals 2 | . . 2 . Communications Jammed . | . . . . Distress Signals . | . . . . Times Spotted 47 | . 23 9 15 Peak Tracking Total 5 | . 5 2 3 Tactical Retreats 5 | . 1 2 2 Traps | -11 -10 -10 -10 ------- Run | Yrd Mat Min Sub Traps Triggered 2 | . 2 . . Indirectly . | . . . . Trap Hack Attempts . | . . . . Triggered . | . . . . Disarmed . | . . . . Reprogrammed . | . . . . Reused . | . . . . Traps Extracted . | . . . . Installed . | . . . . Triggered . | . . . . Most Traps Carried 2 | . . . 2 Machines | -11 -10 -10 -10 ---------- Run | Yrd Mat Min Sub Machines Disabled 4 | . 4 . . Max in Single Turn 2 | . 2 . . Machines Repaired . | . . . . Machines Dismantled . | . . . . Machines Sabotaged . | . . . . Overloaded Fab Kills . | . . . . Hacking | -11 -10 -10 -10 --------- Run | Yrd Mat Min Sub Machines Accessed 8 | . 7 1 . Terminals 6 | . 6 . . Fabricators . | . . . . Repair Stations 1 | . 1 . . Recycling Units . | . . . . Scanalyzers . | . . . . Garrison Access . | . . . . Total Hacks 19 | . 18 1 . Successful 10 | . 9 1 . Failed 8 | . 8 . . Catastrophic . | . . . . Database Lockouts 1 | . 1 . . Manual 8 | . 8 . . Terminals 16 | . 16 . . Fabricators . | . . . . Repair Stations 2 | . 2 . . Recycling Units . | . . . . Scanalyzers . | . . . . Garrison Access . | . . . . Terminal Hacks 7 | . 6 1 . Robot Analysis 2 | . 2 . . Prototype ID Bank 1 | . 1 . . Open Door 1 | . . 1 . Unreport Threat 1 | . 1 . . Locate Traps 1 | . 1 . . Zone Layout 1 | . 1 . . Fabricator Hacks . | . . . . Repair Station Hacks 2 | . 2 . . Scan Component 1 | . 1 . . Repair 1 | . 1 . . Recycling Unit Hacks . | . . . . Scanalyzer . | . . . . Garrison Access Hacks . | . . . . Unauthorized Hacks 1 | . 1 . . Terminals 1 | . 1 . . Track 1 | . 1 . . Fabricators . | . . . . Repair Stations . | . . . . Recycling Units . | . . . . Scanalyzers . | . . . . Garrison Access . | . . . . Data Cores Recovered . | . . . . Used . | . . . . Hacking Detections 6 | . 6 . . Full Trace Events . | . . . . Feedback Events . | . . . . Feedback Blocked . | . . . . Robot Schematics Acquired . | . . . . Robots Built . | . . . . Authchips . | . . . . Time . | . . . . Total Robot Build Rating . | . . . . Part Schematics Acquired . | . . . . Parts Built . | . . . . Authchips . | . . . . Time . | . . . . Total Part Build Rating . | . . . . Parts Repaired 1 | . 1 . . Time 26 | . 26 . . Parts Recycled . | . . . . Recycled Matter . | . . . . Retrieved Matter . | . . . . Retrieved Components . | . . . . Parts Scanalyzed . | . . . . Part Schematics Acquired . | . . . . Parts Damaged . | . . . . Bothacking | -11 -10 -10 -10 ------------ Run | Yrd Mat Min Sub Used RIF Installer . | . . . . Robots Hacked . | . . . . Non-combat . | . . . . Combat . | . . . . Robot Hacks Applied . | . . . . Relay Couplers Released . | . . . . Fabnet Peak Effective % . | . . . . Robots Rewired . | . . . . Allies Hacked . | . . . . Hacks Repelled . | . . . . Allies | -11 -10 -10 -10 -------- Run | Yrd Mat Min Sub Total Allies . | . . . . Largest Group . | . . . . Highest-Rated Group . | . . . . Highest-Rated Ally . | . . . . Total Orders . | . . . . Ally Attacks . | . . . . Total Damage . | . . . . Kills . | . . . . Allies Corrupted . | . . . . Allies Melted . | . . . . Intel | -11 -10 -10 -10 ------- Run | Yrd Mat Min Sub Active Infowar (turns) 57 | 23 34 . . Seismic 57 | 23 34 . . Robot Analysis Total 2 | . 2 . . Derelict Logs Recovered 2 | . . 2 . Drone Launches 1 | . . 1 . Drone Recoveries . | . . . . Exploration | -11 -10 -10 -10 ------------- Run | Yrd Mat Min Sub Turns Passed 3496 | 160 1294 1055 987 Spaces Moved 1943 | 87 820 569 467 Core 1 | 1 . . . Treads 1405 | . 414 569 422 Legs . | . . . . Wheels 537 | 86 406 . 45 Hover . | . . . . Flight . | . . . . Fastest Speed 50 | 50 95 160 160 Average Speed 146 | 97 128 160 170 Slowest Speed 480 | 100 160 160 480 Overloaded Moves . | . . . . Propulsion Burnouts . | . . . . Robots Hopped . | . . . . Cave-ins Triggered . | . . . . Exploration Rate (%) 56 | 5 95 95 32 Regions Visited 3 Branch Regions 2 Pre-discovered Areas . | . . . . Known Exits Taken . | . . . . Unknown Exits Taken 3 | 1 1 1 . Scrap Searched 2 | . . . 2 Spaces Dug . | . . . . Terrain Destroyed 17 | 5 9 2 1 Melee . | . . . . Projectile 1 | . . . 1 AOE 16 | 5 9 2 . Terrain Rammed . | . . . . Walls Destroyed . | . . . . Machines Disabled . | . . . . Actions | -11 -10 -10 -10 --------- Run | Yrd Mat Min Sub Total 2374 | 126 983 691 574 Wait 172 | 5 60 88 19 Move 1940 | 86 819 568 467 Hop . | . . . . Pick Up 54 | 8 17 7 22 Fast Attach 21 | 7 8 1 5 Attach 10 | . 4 1 5 Detach 1 | . 1 . . Swap 15 | 3 6 4 2 Drop 36 | . 21 8 7 Fire 124 | 17 47 13 47 Melee . | . . . . Ram . | . . . . Kick . | . . . . Crush 1 | . . 1 . Escape Stasis . | . . . . Rewire . | . . . . Trap . | . . . . Miscellaneous . | . . . . Route ------- -11/Scrapyard -10/Materials (discovered 4 exits: [*Mat x3] / *Min) -10/Mines (discovered 3 exits: [*Mat x2] / [*Sub]) -10/Subcaves (discovered 1 exit: [*Mat]) History --------- Turn | Location | Event 24 | -11/Scrapyard | Discovered new exit (range 16) 161 | -11/Scrapyard | Entered Materials 296 | -10/Materials | Discovered new exit (range 8) 302 | -10/Materials | Build established: Mutant 530 | -10/Materials | Discovered new exit (range 10) 537 | -10/Materials | Lost 4 parts (1p1u2w) 619 | -10/Materials | Repaired EM Pulse Gun 729 | -10/Materials | Central database locked down 738 | -10/Materials | Discovered new exit (range 13) 979 | -10/Materials | Discovered new exit (range 5) 1455 | -10/Materials | Entered Mines 1456 | -10/Mines | Assembled infested the area 1731 | -10/Mines | Learned location of 1 exit from Materials 1770 | -10/Mines | Found the Drone Emporium 1778 | -10/Mines | Found Prototype Device 1778 | -10/Mines | Identified Sensor Drone Bay 1822 | -10/Mines | Learned Materials terminal intel 1938 | -10/Mines | Discovered new exit (range 14) 2092 | -10/Mines | Joined a pair of Derelicts in attacking an 0b10 outpost 2294 | -10/Mines | Discovered new exit (range 8) 2313 | -10/Mines | Discovered new exit (range 10) 2386 | -10/Mines | Received a Rocket Launcher from a helpful Derelict 2510 | -10/Mines | Entered Subcaves 2520 | -10/Subcaves | Shifting Twisted Machinery released Battle Cannon 2520 | -10/Subcaves | Shifting Twisted Machinery released Multitool 2525 | -10/Subcaves | Discovered new exit (range 8) 2548 | -10/Subcaves | A Subdweller sparked back to life 2548 | -10/Subcaves | A Subdweller sparked back to life 2609 | -10/Subcaves | Found Prototype Processor 2609 | -10/Subcaves | Identified Rainbow Chip 2611 | -10/Subcaves | Attached Rainbow Chip, gained temporary slots: Power, Propulsion, Utility, Weapon 2990 | -10/Subcaves | Build established: Gunner 2999 | -10/Subcaves | Core integrity fell below 50% 3084 | -10/Subcaves | Disturbed a concealed Subdweller 3171 | -10/Subcaves | Core integrity fell below 20% 3411 | -10/Subcaves | Shifting Twisted Machinery released Shrapnel Trap 3421 | -10/Subcaves | Shifting Twisted Machinery released Shrapnel Trap 3497 | -10/Subcaves | Destroyed by XO-GLR(R) with Subdweller Machine Gun Last Messages --------------- 03331_ System corrupted: FCS attempts to trigger Sub. Laser. 03331_ System corrupted: Sub. Laser misfires. 03335_ Acquired Unknown Device. 03345_ Acquired Battle Cannon. 03351_ Acquired Sub. Power Source. 03357_ Acquired Med. Storage Unit. 03363_ Acquired Sub. Monowheel. 03369_ Acquired Imp. Treads. 03373_ Acquired Hacking Suite. 03376_ Acquired Datajack. 03379_ Acquired Scrap Shield Fragment. 03380_ Extracted 1 energy. 03382_ Acquired Med. Battery. 03386_ Acquired Med. Matter Pod. 03387_ Acquired 29 matter. 03391_ Acquired 10 matter. Shrapnel Trap falls loose from the Twisted Machinery. 03433_ Acquired Shrapnel Trap. 03469_ XO-GLR(R): "ARGHSUB!" 03470_ U9AD5N J